Cogmind - Beta 13 @@@ ROGUE MODE // 2024.04.25 @ 10:20:10 Player: Sage Result: Self-destructed Performance ------------- Evolutions (3) 1500 Regions Visited (5) 1000 Robots Destroyed (37) 185 Value Destroyed (674) 674 Prototype IDs (2) 40 Alien Tech Used (0) 0 Bonus (124) 124 TOTAL SCORE: 3523 Bonus ------- High Alert Combat Kills 15 Follower Combat Kills 165 Friendly Fire -56 Cogmind --------- Core Integrity 442/700 Matter 120/300 Energy 12/100 System Corruption 3% Temperature Cool (0) Movement Flying (115) Ox1 Location -7/Factory Parts ------- > --- POWER (2) -------- (None) > --- PROPULSION (5) --- Cesium-ion Thruster > --- UTILITY (4) ------ Small Storage Unit Improved Sensor Array Signal Interpreter Hacking Suite > --- WEAPON (2) ------- Improved Spread Laser > --- INVENTORY (8) ---- Light Deuterium Engine Improved Deuterium Engine Melee Analysis Suite Hacking Suite Hacking Suite System Restoration Module Remote Datajack Chainsword Peak State ------------ > --- POWER ------------ Improved Deuterium Engine > --- PROPULSION ------- VTOL Module VTOL Module VTOL Module Cesium-ion Thruster Cesium-ion Thruster > --- UTILITY ---------- Small Storage Unit Signal Interpreter Seismic Detector Hacking Suite > --- WEAPON ----------- Spread Laser Improved Spread Laser > --- INVENTORY -------- Light Deuterium Engine Melee Analysis Suite Weapon Cycler Hacking Suite Hacking Suite System Restoration Module Improved Spread Laser [Rating: 31] Favorites ----------- Power Light Ion Engine Engine Light Ion Engine Propulsion Light Treads Treads Light Treads Flight Unit VTOL Module Utility Signal Interpreter Device Seismic Detector Storage Small Storage Unit Processor Signal Interpreter Hackware Hacking Suite Weapon Light Assault Rifle Energy Gun Improved Spread Laser Energy Cannon Heavy Ion Cannon Ballistic Gun Light Assault Rifle Ballistic Cannon Light Cannon Launcher Grenade Launcher Build | -11 -10 -10 -9 -8 -7 ------- Run | Yrd Mat Min Mat Mat Fac Slots Evolved 6 | . . . 2 2 2 Power 1 | . . . . . 1 Propulsion 3 | . . . 1 1 1 Utility 2 | . . . 1 1 . Weapon . | . . . . . . Parts Attached 56 | 7 4 5 9 16 15 Power 5 | 1 . 1 1 . 2 Engine 5 | 1 . 1 1 . 2 Core . | . . . . . . Reactor . | . . . . . . Propulsion 17 | 2 . . 4 4 7 Treads 3 | 2 . . 1 . . Leg . | . . . . . . Wheel . | . . . . . . Hover . | . . . . . . Flight 14 | . . . 3 4 7 Utility 10 | 1 3 . 2 3 1 Device 4 | . 1 . 1 1 1 Storage 3 | 1 1 . 1 . . Processor 2 | . 1 . . 1 . Hackware 1 | . . . . 1 . Protection . | . . . . . . Artifact . | . . . . . . Weapon 24 | 3 1 4 2 9 5 Energy Gun 11 | 2 . 1 1 4 3 Energy Cannon 1 | . . . . 1 . Ballistic Gun 7 | 1 . 1 1 2 2 Ballistic Cannon 2 | . . 1 . 1 . Launcher 3 | . 1 1 . 1 . Special Weapon . | . . . . . . Impact Weapon . | . . . . . . Slashing Weapon . | . . . . . . Piercing Weapon . | . . . . . . Special Melee Weapon . | . . . . . . Unidentified Prototypes 2 | . . . 1 1 . Parts Lost 8 | . . . . 1 7 Power . | . . . . . . Propulsion 8 | . . . . 1 7 Utility . | . . . . . . Weapon . | . . . . . . Highest Loss Streak 4 | . . . . 1 4 To Critical Strikes . | . . . . . . Average Slot Usage (%) 91 | . 97 100 87 95 81 Engine 11 | . 14 14 11 9 8 Treads 14 | . 28 28 16 . . Flight 15 | . . . 9 34 34 Device 5 | . 1 . 11 10 7 Storage 11 | . 23 14 11 9 7 Processor 10 | . . 14 11 14 7 Hackware 2 | . . . . 1 7 Energy Gun 3 | . . 2 2 8 5 Ballistic Gun 7 | . 14 13 6 5 . Launcher 6 | . 13 11 8 1 . Naked Turns . | . . . . . . Heaviest Build 24 | 12 22 23 24 20 20 Greatest Support 60 | 40 40 40 60 17 22 Greatest Overweight (x) 5 | . . . 5 1 1 Average Overweight (x) . | . . . . . . Largest Inventory Capacity 10 | 8 10 10 10 8 8 Average Capacity 8 | 7 9 10 9 8 8 Most Carried 10 | 2 9 10 10 8 8 Average Carried 7 | 1 4 8 8 7 7 Final Capacity 10 | 8 10 10 8 8 8 Final Carried 10 | 2 8 10 7 8 8 Class Distribution -------------------- 64% | Mutant 30% | Sprinter 4% | Scavenger-Sprinter Dominant Class ---------------- Mutant | -10/Materials Mutant | -10/Mines Mutant | -9/Materials Sprinter | -8/Materials Sprinter | -7/Factory Resources | -11 -10 -10 -9 -8 -7 ----------- Run | Yrd Mat Min Mat Mat Fac Matter Collected 809 | 190 83 153 176 147 60 Remotely . | . . . . . . Salvage Created 647 | . 31 183 199 127 107 Parts 66 | . 4 17 20 13 12 Haulers Intercepted 1 | . . . 1 . . Recyclers Shooed . | . . . . . . Parts Field Recycled . | . . . . . . Retrieved Matter . | . . . . . . Parts Self-Destructed . | . . . . . . Prevented . | . . . . . . Kills | -11 -10 -10 -9 -8 -7 ------- Run | Yrd Mat Min Mat Mat Fac Combat Hostiles Destroyed 25 | . 3 5 6 7 4 Guns 16 | . 1 3 1 7 4 AOE 9 | . 2 2 5 . . Classes Destroyed 11 | . 2 2 6 . 1 Worker 2 | . . . 1 . 1 Builder 1 | . . . 1 . . Tunneler 4 | . . 3 . . 1 Hauler 1 | . . . 1 . . Mechanic 1 | . . . 1 . . Watcher 2 | . 1 . 1 . . Swarmer 17 | . 3 3 2 6 3 Grunt 4 | . . . 4 . . Sentry 3 | . . 2 . 1 . Programmer 1 | . . . . . 1 Zionite 1 | . . . 1 . . Best Kill Streak 5 | . 4 3 5 3 2 Combat Bots Only 3 | . 3 3 3 3 2 Max Kills in Single Turn 4 | . 2 2 4 1 1 Gunslinging . | . . . . . . Exploded 2 | . 1 2 2 . . Melee . | . . . . . . Uniques/NPCs Destroyed . | . . . . . . Combat | -11 -10 -10 -9 -8 -7 -------- Run | Yrd Mat Min Mat Mat Fac Hostile Shots Fired 157 | . 6 37 16 30 68 Missed 55 | . 2 15 4 10 24 Damage Taken 1338 | . 35 293 147 188 675 Core 402 | . 6 61 34 43 258 Absorbed by Shields 38 | . . . . . 38 Regen/Repaired (Parts) 74 | . . . . . 74 Core Remaining (%) 89 | 100 . 73 91 92 . Volleys Fired 69 | . 4 22 9 17 17 Largest 2 | . 2 2 2 2 2 Hottest 150 | . 50 60 86 150 103 Shots Fired 108 | . 8 37 16 29 18 Gun 95 | . 4 35 9 29 18 Cannon . | . . . . . . Launcher 13 | . 4 2 7 . . Special . | . . . . . . Kinetic 49 | . 4 22 6 16 1 Thermal 33 | . . . 3 13 17 Explosive 13 | . 4 2 7 . . Electromagnetic 13 | . . 13 . . . Robot Hit Streak 10 | . 1 9 10 6 8 Robot Miss Streak 11 | . 5 3 4 11 5 Penetration Max . | . . . . . . Secondary Targets 1 | . . . . 1 . Max Gunslinging Chain 1 | . . . . 1 . Shots Hit Robots 70 | . 1 27 8 17 17 Core Hits 80 | . 3 11 25 17 24 Critical Kills . | . . . . . . Critical Parts Destroyed . | . . . . . . Critical Strikes . | . . . . . . Melee Attacks . | . . . . . . Impact . | . . . . . . Slashing . | . . . . . . Piercing . | . . . . . . Sneak Attacks . | . . . . . . Combat Hostiles . | . . . . . . Follow-up Attacks . | . . . . . . Damage Inflicted 1748 | . 181 336 627 298 306 Guns 905 | . 10 244 63 282 306 Cannons . | . . . . . . Explosions 843 | . 171 92 564 16 . Melee . | . . . . . . Ramming . | . . . . . . Kinetic 310 | . 10 130 47 95 28 Thermal 481 | . . . 16 187 278 Explosive 827 | . 171 92 564 . . Electromagnetic 130 | . . 114 . 16 . Impact . | . . . . . . Slashing . | . . . . . . Piercing . | . . . . . . Highest Corruption 5 | . . . . 5 3 Average Corruption 3 | . . . . 4 2 Corruption Purged . | . . . . . . Corruption Blocked . | . . . . . . Effects 10 | . . . . 6 4 Message Errors 1 | . . . . 1 . Matter Fused 5 | . . . . 3 2 Heat Flow Errors 2 | . . . . 2 . Energy Discharges 1 | . . . . . 1 Data Loss (major) 1 | . . . . . 1 Overload Shots . | . . . . . . Overflow Damage 28 | . 22 . 6 . . Projectiles . | . . . . . . Explosions 28 | . 22 . 6 . . Melee . | . . . . . . Knockbacks . | . . . . . . Impact . | . . . . . . Kinetic . | . . . . . . Secondary . | . . . . . . Self-Inflicted Damage 14 | . . . 14 . . Shots 1 | . . . 1 . . Rammed . | . . . . . . Targets Rammed . | . . . . . . Kicked . | . . . . . . Crushed . | . . . . . . Highest Temperature 260 | . 10 58 30 260 135 Average Temperature 43 | . 7 25 13 83 32 Received Heat Transfer 168 | . . 54 42 27 45 Siege Activations . | . . . . . . Robots Corrupted . | . . . . . . Combat Hostiles . | . . . . . . Parts Fried 2 | . . 2 . . . Impact Corruptions . | . . . . . . Robots Melted . | . . . . . . Combat Hostiles . | . . . . . . Parts Melted 1 | . . . . . 1 Heat Transferred 412 | . . . 37 155 220 Parts Sabotaged . | . . . . . . Parts Stolen . | . . . . . . Parts Stripped . | . . . . . . Power Chain Reactions . | . . . . . . Alert | -11 -10 -10 -9 -8 -7 ------- Run | Yrd Mat Min Mat Mat Fac Peak Influence 639 | . 105 207 584 639 392 Initial 290 | . . 40 2 246 290 Average 202 | . 55 54 234 449 300 Maximum Alert Level 2 | . . 1 2 2 1 Low Security (%) 53 | 100 100 99 49 . 7 Level 1 33 | . . . 18 47 92 Level 2 12 | . . . 32 52 . Level 3 . | . . . . . . Level 4 . | . . . . . . Level 5 . | . . . . . . High Security . | . . . . . . Max Security . | . . . . . . Squads Dispatched 5 | . . . 3 . 2 Investigation 2 | . . . 1 . 1 Extermination 1 | . . . . . 1 Reinforcement 2 | . . . 2 . . Assault . | . . . . . . Garrison . | . . . . . . Intercept . | . . . . . . Searches Triggered . | . . . . . . Construction Impeded 1 | . . . 1 . . Haulers Reinforced . | . . . . . . Active Scanning Responses . | . . . . . . Cargo Convoy Interrupts . | . . . . . . Stealth | -11 -10 -10 -9 -8 -7 --------- Run | Yrd Mat Min Mat Mat Fac Distress Signals 3 | . . . 2 1 . Communications Jammed . | . . . . . . Distress Signals . | . . . . . . Times Spotted 66 | . 4 5 20 18 19 Peak Tracking Total 9 | . 3 3 7 9 6 Tactical Retreats 11 | . . 1 1 4 5 Traps | -11 -10 -10 -9 -8 -7 ------- Run | Yrd Mat Min Mat Mat Fac Traps Triggered 6 | . . . 1 1 4 Indirectly . | . . . . . . Trap Hack Attempts . | . . . . . . Triggered . | . . . . . . Disarmed . | . . . . . . Reprogrammed . | . . . . . . Reused . | . . . . . . Traps Extracted . | . . . . . . Installed . | . . . . . . Triggered . | . . . . . . Machines | -11 -10 -10 -9 -8 -7 ---------- Run | Yrd Mat Min Mat Mat Fac Machines Disabled 4 | . . . 2 2 . Max in Single Turn 2 | . . . 1 2 . Machines Repaired . | . . . . . . Machines Dismantled . | . . . . . . Machines Sabotaged . | . . . . . . Overloaded Fab Kills . | . . . . . . Hacking | -11 -10 -10 -9 -8 -7 --------- Run | Yrd Mat Min Mat Mat Fac Machines Accessed 13 | . 2 . . 3 8 Terminals 8 | . 2 . . 2 4 Fabricators 2 | . . . . . 2 Repair Stations 2 | . . . . . 2 Recycling Units . | . . . . . . Scanalyzers 1 | . . . . 1 . Garrison Access . | . . . . . . Total Hacks 32 | . 6 . . 6 20 Successful 17 | . 1 . . 5 11 Failed 15 | . 5 . . 1 9 Catastrophic 2 | . 1 . . . 1 Database Lockouts . | . . . . . . Manual 13 | . 7 . . 2 4 Terminals 19 | . 6 . . 4 9 Fabricators 4 | . . . . . 4 Repair Stations 7 | . . . . . 7 Recycling Units . | . . . . . . Scanalyzers 2 | . . . . 2 . Garrison Access . | . . . . . . Terminal Hacks 7 | . 1 . . 3 3 Record 3 | . . . . 1 2 Open DSF 1 | . . . . . 1 Terminal Index 2 | . 1 . . 1 . Zone Layout 1 | . . . . 1 . Fabricator Hacks 2 | . . . . . 2 Network Status 1 | . . . . . 1 Load Schematic 1 | . . . . . 1 Repair Station Hacks 6 | . . . . . 6 Scan Component 3 | . . . . . 3 Repair 3 | . . . . . 3 Recycling Unit Hacks . | . . . . . . Scanalyzer 2 | . . . . 2 . Insert Component 1 | . . . . 1 . Analyze 1 | . . . . 1 . Garrison Access Hacks . | . . . . . . Unauthorized Hacks . | . . . . . . Terminals . | . . . . . . Fabricators . | . . . . . . Repair Stations . | . . . . . . Recycling Units . | . . . . . . Scanalyzers . | . . . . . . Garrison Access . | . . . . . . Data Cores Recovered . | . . . . . . Used . | . . . . . . Hacking Detections 11 | . 2 . . 3 6 Full Trace Events 1 | . . . . . 1 Feedback Events . | . . . . . . Feedback Blocked . | . . . . . . Robot Schematics Acquired . | . . . . . . Robots Built . | . . . . . . Authchips . | . . . . . . Time . | . . . . . . Total Robot Build Rating . | . . . . . . Part Schematics Acquired 1 | . . . . 1 . Parts Built . | . . . . . . Authchips . | . . . . . . Time . | . . . . . . Total Part Build Rating . | . . . . . . Parts Repaired 3 | . . . . . 3 Time 86 | . . . . . 86 Parts Recycled . | . . . . . . Recycled Matter . | . . . . . . Retrieved Matter . | . . . . . . Retrieved Components . | . . . . . . Parts Scanalyzed 1 | . . . . 1 . Part Schematics Acquired 1 | . . . . 1 . Parts Damaged . | . . . . . . Bothacking | -11 -10 -10 -9 -8 -7 ------------ Run | Yrd Mat Min Mat Mat Fac Used RIF Installer . | . . . . . . Robots Hacked . | . . . . . . Non-combat . | . . . . . . Combat . | . . . . . . Robot Hacks Applied . | . . . . . . Relay Couplers Released . | . . . . . . Fabnet Peak Effective % . | . . . . . . Robots Rewired . | . . . . . . Allies Hacked . | . . . . . . Hacks Repelled . | . . . . . . Allies | -11 -10 -10 -9 -8 -7 -------- Run | Yrd Mat Min Mat Mat Fac Total Allies 2 | . . 2 . . . Largest Group 2 | . . 2 2 . . Highest-Rated Group 45 | . . 45 45 . . Highest-Rated Ally 31 | . . 31 31 . . Total Orders . | . . . . . . Ally Attacks 17 | . . . 17 . . Total Damage 269 | . . . 269 . . Kills 7 | . . . 7 . . Allies Corrupted . | . . . . . . Allies Melted . | . . . . . . Intel | -11 -10 -10 -9 -8 -7 ------- Run | Yrd Mat Min Mat Mat Fac Robot Analysis Total . | . . . . . . Derelict Logs Recovered 1 | . . 1 . . . Drone Launches . | . . . . . . Drone Recoveries . | . . . . . . Exploration | -11 -10 -10 -9 -8 -7 ------------- Run | Yrd Mat Min Mat Mat Fac Turns Passed 1970 | 74 162 597 361 263 513 Spaces Moved 2344 | 43 87 303 398 336 1177 Core 5 | 5 . . . . . Treads 553 | 38 87 303 125 . . Legs . | . . . . . . Wheels . | . . . . . . Hover . | . . . . . . Flight 1786 | . . . 273 336 1177 Fastest Speed 23 | 50 160 160 29 27 23 Average Speed 58 | 147 160 160 71 28 24 Slowest Speed 435 | 160 160 160 435 110 106 Overloaded Moves . | . . . . . . Propulsion Burnouts . | . . . . . . Robots Hopped 11 | . . . 1 . 10 Cave-ins Triggered . | . . . . . . Exploration Rate (%) 32 | 4 23 65 47 28 29 Regions Visited 5 Branch Regions 1 Pre-discovered Areas . | . . . . . . Known Exits Taken 4 | . 1 1 1 1 . Unknown Exits Taken 1 | 1 . . . . . Scrap Searched . | . . . . . . Spaces Dug . | . . . . . . Terrain Destroyed 81 | . 19 11 51 . . Melee . | . . . . . . Projectile . | . . . . . . AOE 81 | . 19 11 51 . . Terrain Rammed . | . . . . . . Walls Destroyed . | . . . . . . Machines Disabled . | . . . . . . Actions | -11 -10 -10 -9 -8 -7 --------- Run | Yrd Mat Min Mat Mat Fac Total 2859 | 51 104 387 462 481 1374 Wait 283 | . . 45 20 80 138 Move 2319 | 42 86 302 395 335 1159 Hop 9 | . . . 1 . 8 Pick Up 42 | 1 7 5 9 11 9 Fast Attach 34 | 7 . 1 5 10 11 Attach 22 | . 4 4 4 6 4 Detach 20 | 1 3 4 3 6 3 Swap . | . . . . . . Drop 50 | . . 4 16 16 14 Fire 69 | . 4 22 9 17 17 Melee . | . . . . . . Ram . | . . . . . . Kick . | . . . . . . Crush . | . . . . . . Escape Stasis 11 | . . . . . 11 Rewire . | . . . . . . Trap . | . . . . . . Miscellaneous . | . . . . . . Route ------- -11/Scrapyard -10/Materials -10/Mines -9/Materials (discovered 3 exits: *Mat / *Min x2) -8/Materials -7/Factory (discovered 1 exit: *Low) History --------- Turn | Location | Event 3 | -11/Scrapyard | Discovered new exit (range 16) 75 | -11/Scrapyard | Entered Materials 168 | -10/Materials | Discovered new exit (range 16) 237 | -10/Materials | Identified exit to Mines 237 | -10/Materials | Entered Mines 262 | -10/Mines | Met a Derelict bent on vengeance 314 | -10/Mines | Build established: Mutant 737 | -10/Mines | Discovered new exit (range 11) 753 | -10/Mines | Identified exit to Materials 834 | -10/Mines | Entered Materials 834 | -9/Materials | Accompanied by 2 allies 834 | -9/Materials | Evolved 2 slots: Propulsion x1, Utility x1 835 | -9/Materials | Identified exit to Mines 839 | -9/Materials | Led the pair of lost Derelicts to an unsafe place 1124 | -9/Materials | Discovered new exit (range 16) 1128 | -9/Materials | Identified exit to Materials 1195 | -9/Materials | Entered another Materials area 1195 | -8/Materials | Evolved 2 slots: Propulsion x1, Utility x1 1359 | -8/Materials | Discovered new exit (range 10) 1361 | -8/Materials | Identified exit to Factory 1458 | -8/Materials | Entered Factory 1458 | -7/Factory | Evolved 2 slots: Power x1, Propulsion x1 1534 | -7/Factory | Repaired VTOL Module 1603 | -7/Factory | Identified exit to DSF 1776 | -7/Factory | Repaired Lgt. Deuterium Engine 1847 | -7/Factory | Build established: Sprinter 1878 | -7/Factory | Discovered new exit (range 3) 1879 | -7/Factory | Identified exit to Lower Caves 1912 | -7/Factory | Repaired VTOL Module 1971 | -7/Factory | Self-destructed Last Messages --------------- 01896_ Connecting with Repair Station... >>Scan(VTOL Module) Scanning VTOL Module... Ready to Repair: VTOL Module Rating: 2 Time: 16 >>Repair Repairing VTOL Module... ETC: 16 01898_ ALERT: Cargo convoy en route, clear transfer corridor. 01912_ Repair station completes VTOL Module repairs. 01912_ Acquired VTOL Module. 01956_ VTOL Module destroyed. 01958_ S-27 Virus destroyed. 01960_ Acquired 17 matter. 01961_ Acquired VTOL Module. 01961_ Cesium-ion Thruster destroyed. 01964_ S-27 Virus destroyed. 01970_ VTOL Module destroyed. Map ----- +----------------------------------------------------+ | | | | | | | | | | | | | | | | | | | | | | | | | | | | | | | | | ???????????????????????#####?????################# | | ??????????????????????# "T"?#?# | | ??????????????????????# #?# ! | | ??????????????????????# #?# | | ??????????????????????# #?# | | ??????????????????????# s #?# | | ??????????????????????# s """ #?# ! | | ??????????????????????# =%""" #?# | | ??????????????????????# =""" #?# | | ####??????????????????# @ * #?# | | #??????????????????#####/##############+####### | | "" #????????######????????#x + # | | "" #######? ?????????# # """ # | | "" # +? ?????????# # """"" # | | # # """ ""?????????# + """"" # | | "" # # """ ""?????????# # # | | "" + + """ ""?????????# ######+## | | "" # # "??????# | | # # #????# x | | #### ################## x """ !! """ | | ### =! """ !! """ | | # =! """ !! """ | | # ? | | # """" """" | | # """" """" #### | | ] # """" """" #??? | | ] # """" """" % #??? | | ] # """" """" ################### ##??? | | ### """" """" #?????????????????? #???? | | ^ "" #?????????????????? #???? | | "F"" ##????????????????? #???? | | """" #????????????????? ?????? | | #????????????????? ???????# | | ! #??????????????????????????# | +----------------------------------------------------+ Best States ------------- Heat Dissipation 34 Energy Generation 16 Energy Capacity 290 Matter Stores 300 Matter Capacity 300 Sight Range 16 Robot Scan Range 15 Terrain Scan Range 14 Terrain Scan Density 10 Evasion (%) 65 Core Analysis 6 Recoil Reduction 3 Particle Charging 15 Offensive Hacking 10 Item Schematics ----------------- Hacking Suite | -8/Materials | Scanalyzed Robot Schematics ------------------ None Fabricated ------------ Nothing Alien Tech Used ----------------- None Achievements -------------- Cya! Challenges ------------ None Game ------ Seed AntigravInertialLog Manual? 0 Play Time 01:11:46 Cumulative 12.9 hours Start 2024.04.20 @ 21:27:18 End 2024.04.25 @ 10:20:10 Sessions 11 Manual Loads 0 Difficulty Rogue Special Mode None Game No. 11 Rogue 11 Adventurer 0 Explorer 0 Win Type - Total 0 Types 0/0/0/0/0/0/0/0/0 Lore% 8 Gallery% 15 Achievement% 17 Wizard Run 0 Options --------- Layout 0 ASCII 0 Keyboard 0 Movement Mouse Keybinds 0 Fullscreen 2 Font 18/SmallcapsGlow Map View 76x50 Zoom Use 0% Tactical HUD 1 Map Filters NONE Filters NONE Steam 1 RUN: ac016403-f1cb-4cfd-b152-0caf86621ef6